Cogmind - Beta 13 @@@ ROGUE MODE // 2024.05.21 @ 15:27:24 Player: Waste Result: Destroyed by H-77 Assassin with Coil Gun Performance ------------- Evolutions (7) 3500 Regions Visited (27) 5400 Robots Destroyed (254) 1270 Value Destroyed (9939) 9939 Prototype IDs (82) 1640 Alien Tech Used (1) 200 Bonus (3675) 3675 TOTAL SCORE: 25624 Bonus ------- High Alert Combat Kills 521 Follower Combat Kills 399 Aligned with FarCom 300 Met Data Miner 300 Met Zhirov 300 Met Warlord at Base 500 MAIN.C Attacked Warlord 500 Warlord Defense Kills 632 Scanned by Researcher 500 Friendly Fire -277 Cogmind --------- Core Integrity 0/1300 Matter 202/300 Energy 170/170 System Corruption 24% Temperature Cool (0) Movement Core (2600) Ox51 Location -3/Testing Parts ------- > --- POWER (4) -------- Light Antimatter Reactor > --- PROPULSION (6) --- Medium Treads Medium Treads > --- UTILITY (8) ------ Advanced Heat Sink Huge Storage Unit Advanced Target Analyzer Heavy Regenerative Plating SHELL Armor > --- WEAPON (3) ------- Warp Gun Longsword +1 > --- INVENTORY (25) --- Q-thruster Improved Matter Compressor (168) Experimental Sensor Array Experimental Thermal Shield Advanced EM Disruption Field 7V-RTL's Ultimate Field Peak State ------------ > --- POWER ------------ Reinforced Fission Core Fusion Reactor Vortex Chain Reactor > --- PROPULSION ------- Heavy Treads Armored Huge Wheel Armored Huge Wheel > --- UTILITY ---------- Advanced Cooling System Huge Storage Unit Experimental Sensor Array Advanced Signal Interpreter Advanced Targeting Computer Advanced Powered Armor Advanced Powered Armor Advanced Hacking Suite > --- WEAPON ----------- Dispersion Rifle Matter Neutralizer Matter Neutralizer > --- INVENTORY -------- Medium Treads Experimental Cooling System Experimental Energy Well Improved Matter Compressor Quantum Capacitor Nanoactuators Advanced Transmission Jammer Improved Medium Armor Plating Heavy Insulated Plating Advanced Powered Armor 7V-RTL's Ultimate Field Improved Energy Mantle Long-range Tractor Beam HERF Cannon Heavy Phase Cannon Helical Railgun Magnetic Acceleration Cannon Heavy Rocket Launcher Heavy Rocket Launcher Longsword +1 [Rating: 142] Favorites ----------- Power Reinforced Fission Core Engine Light Ion Engine Power Core Reinforced Fission Core Reactor Fusion Reactor Propulsion Armored Huge Wheel Treads Light Treads Leg Aluminum Leg Wheel Armored Huge Wheel Flight Unit Q-thruster Utility Huge Storage Unit Device Experimental Sensor Array Storage Huge Storage Unit Processor Advanced Signal Interpreter Hackware Advanced Hacking Suite Protection Medium Reactive Plating Weapon Longsword +1 Energy Gun Dispersion Rifle Energy Cannon Phase Cannon Ballistic Gun Light Assault Rifle Ballistic Cannon Flak Cannon Launcher Heavy Rocket Launcher Slashing Weapon Longsword +1 Build | -11 -10 -10 -9 -9 -9 -8 -8 -7 -7 -7 -7 -6 -6 -5 -5 -5 -5 -5 -5 -4 -4 -4 -4 -4 -3 -3 -3 ------- Run | Yrd Mat Min Mat Min Exi Min Mat Fac Low Low Dat Pro Fac Fac Was Fac Upp Upp Zhi Pro Fac Upp Upp War Pro Res Tes Slots Evolved 14 | . . . 2 . . . 2 2 . . . . 2 2 . . . . . . 2 . . . . 2 . Power 3 | . . . . . . . . . . . . . . 1 . . . . . . . . . . . 2 . Propulsion 4 | . . . 1 . . . . . . . . . 1 . . . . . . . 2 . . . . . . Utility 6 | . . . . . . . 2 2 . . . . 1 1 . . . . . . . . . . . . . Weapon 1 | . . . 1 . . . . . . . . . . . . . . . . . . . . . . . . Parts Attached 336 | . 8 2 8 1 10 17 27 23 5 5 1 3 11 5 7 22 6 3 12 2 32 3 7 20 2 37 57 Power 23 | . 1 . 1 . 2 3 1 . . . . . . . 2 1 . . 2 . 1 . . . . 3 6 Engine 5 | . 1 . 1 . 2 1 . . . . . . . . . . . . . . . . . . . . . Core 7 | . . . . . . 1 1 . . . . . . . 2 1 . . 1 . . . . . . . 1 Reactor 11 | . . . . . . 1 . . . . . . . . . . . . 1 . 1 . . . . 3 5 Propulsion 43 | . 1 . 5 1 2 4 6 2 1 . . . 1 . . . . . . . 2 . 1 . . 3 14 Treads 23 | . . . 5 1 2 1 3 . . . . . . . . . . . . . 1 . 1 . . 3 6 Leg 1 | . 1 . . . . . . . . . . . . . . . . . . . . . . . . . . Wheel 18 | . . . . . . 3 3 2 1 . . . 1 . . . . . . . 1 . . . . . 7 Hover . | . . . . . . . . . . . . . . . . . . . . . . . . . . . . Flight 1 | . . . . . . . . . . . . . . . . . . . . . . . . . . . 1 Utility 174 | . 5 2 . . 1 6 10 11 3 2 . . 7 5 4 18 2 2 8 . 25 1 3 15 2 21 21 Device 96 | . 2 2 . . . 3 4 5 2 2 . . 3 3 4 9 . 1 3 . 15 1 2 9 2 13 11 Storage 9 | . 2 . . . . 2 2 . . . . . . . . . . . 2 . . . . . . . 1 Processor 12 | . 1 . . . . . 1 1 . . . . 1 . . 1 . . . . . . . . . 1 6 Hackware 5 | . . . . . . . . 1 . . . . 1 . . 1 . . . . 1 . . . . . 1 Protection 52 | . . . . . 1 1 3 4 1 . . . 2 2 . 7 2 1 3 . 9 . 1 6 . 7 2 Artifact . | . . . . . . . . . . . . . . . . . . . . . . . . . . . . Weapon 96 | . 1 . 2 . 5 4 10 10 1 3 1 3 3 . 1 3 4 1 2 2 4 2 3 5 . 10 16 Energy Gun 16 | . . . . . . . 3 1 . . . . . . . . . . . . 2 . . 1 . . 9 Energy Cannon 10 | . . . . . . . . . . . . . 1 . . . . . . 1 1 . 1 2 . 4 . Ballistic Gun 21 | . 1 . 2 . 2 3 2 3 . . . 3 2 . . . 2 . . 1 . . . . . . . Ballistic Cannon 4 | . . . . . . . 2 . . . . . . . . . . . . . . . . . . . 2 Launcher 25 | . . . . . 1 . 3 2 1 1 1 . . . 1 2 1 . 2 . 1 1 1 1 . 3 3 Special Weapon . | . . . . . . . . . . . . . . . . . . . . . . . . . . . . Impact Weapon . | . . . . . . . . . . . . . . . . . . . . . . . . . . . . Slashing Weapon 20 | . . . . . 2 1 . 4 . 2 . . . . . 1 1 1 . . . 1 1 1 . 3 2 Piercing Weapon . | . . . . . . . . . . . . . . . . . . . . . . . . . . . . Special Melee Weapon . | . . . . . . . . . . . . . . . . . . . . . . . . . . . . Unidentified Prototypes 35 | . . 1 . . . 2 5 2 . . . . . . . . . . 4 . . . . 2 . 4 15 Corrupted Parts 2 | . . . . . . . . . . . . . . . . . . . . . . . . . . . 2 System Corruption 3 | . . . . . . . . . . . . . . . . . . . . . . . . . . . 3 Parts Lost 73 | . 1 . 1 . 5 12 4 2 . . . . . . . 1 . . . . . . . 1 . 19 27 Power 11 | . . . . . 1 2 . . . . . . . . . . . . . . . . . . . 3 5 Propulsion 24 | . . . . . 2 4 3 . . . . . . . . . . . . . . . . . . 5 10 Utility 17 | . . . . . 1 2 . 1 . . . . . . . 1 . . . . . . . 1 . 7 4 Weapon 21 | . 1 . 1 . 1 4 1 1 . . . . . . . . . . . . . . . . . 4 8 Highest Loss Streak 14 | . 1 . 1 . 5 12 2 1 . . . . . . . 1 . . . . . . . 1 . 14 10 To Critical Strikes 6 | . . . . . 1 1 . . . . . . . . . . . . . . . . . . . 1 3 Average Slot Usage (%) 86 | . 96 100 100 100 100 75 95 92 92 91 76 92 85 81 81 87 88 87 73 88 79 78 77 76 84 78 59 Engine 2 | . 14 14 11 11 11 5 . . . . . . . . . . . . . . . . . . . . . Core 5 | . . . . . . . 9 7 7 7 7 7 6 5 10 11 11 11 9 5 5 5 5 5 5 1 2 Reactor 2 | . . . . . . 3 . . . . . . . . . . . . 1 5 5 5 5 5 5 11 5 Treads 5 | . . . 29 33 33 15 13 . . . . . . . . . . . . . 5 5 4 5 5 7 8 Leg 2 | . 28 28 3 . . . . . . . . . . . . . . . . . . . . . . . . Wheel 9 | . . . . . . 9 11 15 15 15 15 15 13 11 11 11 11 11 11 11 10 10 10 10 10 8 5 Device 10 | . 4 14 11 11 8 7 8 12 6 7 15 15 19 16 17 20 11 10 11 11 4 5 4 6 6 11 7 Storage 7 | . 14 14 11 11 11 10 9 7 7 7 7 7 6 5 5 5 5 5 6 11 6 5 5 5 5 3 3 Processor 8 | . 5 . . . . . 9 15 15 15 15 15 13 11 5 6 11 11 11 11 10 10 10 10 10 6 13 Hackware 3 | . . . . . . . . 4 7 6 . . . . . . 5 5 5 5 9 10 10 8 5 3 1 Protection 5 | . . . . . 2 1 7 4 7 7 7 7 6 11 11 11 11 11 6 5 5 5 5 4 13 5 1 Energy Gun 3 | . 10 . . . . . 17 5 . . . . . . . . . . . . 4 10 9 4 5 3 1 Energy Cannon 2 | . . . . . . . . . . . . . 5 5 5 5 5 4 . 5 1 . . 6 10 5 . Ballistic Gun 8 | . 17 28 33 33 24 12 2 8 15 14 . 15 6 5 5 4 4 4 . 5 3 . . . . . . Slashing Weapon 3 | . . . . . 7 8 2 7 7 5 7 7 6 5 . 4 4 1 5 5 5 4 . 2 . 2 2 Naked Turns 14 | . . . . . . 2 . . . . . . . . . . . . . . . . . . . 12 . Heaviest Build 207 | 11 47 46 51 51 54 93 107 131 131 121 116 120 131 146 168 176 162 175 144 144 168 148 162 186 185 207 157 Greatest Support 95 | 20 20 20 60 60 60 60 60 38 38 38 38 38 56 56 56 56 56 56 56 56 56 56 70 56 56 56 95 Greatest Overweight (x) 51 | . 2 2 2 . . 3 6 3 3 3 3 3 2 2 2 3 2 3 2 2 2 2 2 3 3 6 51 Average Overweight (x) 2 | . . 2 . . . 1 4 2 3 2 2 3 2 2 2 2 2 2 2 2 2 2 2 2 3 2 3 Largest Inventory Capacity 25 | . 20 20 20 20 20 20 25 25 25 25 25 25 25 25 25 25 25 25 25 25 25 25 25 25 25 25 25 Average Capacity 23 | . 14 20 20 20 20 18 21 25 25 25 25 25 25 25 25 25 25 25 25 25 25 25 25 25 25 24 21 Most Carried 25 | . 14 17 20 20 20 20 25 25 25 25 25 24 25 25 25 25 25 25 25 25 25 24 25 25 20 25 18 Average Carried 21 | . 9 15 18 20 18 14 20 24 24 24 24 23 24 24 23 24 25 24 24 24 24 22 24 23 20 23 9 Final Capacity 25 | 8 20 20 20 20 20 20 25 25 25 25 25 25 25 25 25 25 25 25 25 25 25 25 25 25 25 5 25 Final Carried 25 | 6 14 17 20 20 16 20 24 25 25 25 24 23 24 25 25 25 25 25 23 25 25 23 25 20 20 5 6 Class Distribution -------------------- 21% | Mutant 18% | Scavenger-Assassin 14% | Scavenger-Mutant 14% | Hacker-Mutant 13% | Scavenger-Gunner 5% | Tank 4% | Generator-Mutant Dominant Class ---------------- Mutant | -10/Materials Mutant | -10/Mines Scavenger-Gunner | -9/Materials Scavenger-Gunner | -9/Mines Scavenger-Mutant | -9/Exiles Mutant | -8/Mines Scavenger-Gunner | -8/Materials Scavenger-Assassin | -7/Factory Mutant | -7/Lower Caves Mutant | -7/Lower Caves Scavenger-Mutant | -7/Data Miner Scavenger-Mutant | -6/Proximity Caves Scavenger-Assassin | -6/Factory Scavenger-Assassin | -5/Factory Tank | -5/Waste Scavenger-Assassin | -5/Factory Mutant | -5/Upper Caves Tank | -5/Upper Caves Mutant | -5/Zhirov Mutant | -4/Proximity Caves Hacker-Mutant | -4/Factory Hacker-Mutant | -4/Upper Caves Hacker-Skirmisher | -4/Upper Caves Hacker-Mutant | -4/Warlord Tank | -3/Proximity Caves Generator-Mutant | -3/Research Scavenger-Assassin | -3/Testing Resources | -11 -10 -10 -9 -9 -9 -8 -8 -7 -7 -7 -7 -6 -6 -5 -5 -5 -5 -5 -5 -4 -4 -4 -4 -4 -3 -3 -3 ----------- Run | Yrd Mat Min Mat Min Exi Min Mat Fac Low Low Dat Pro Fac Fac Was Fac Upp Upp Zhi Pro Fac Upp Upp War Pro Res Tes Matter Collected 9332 | 200 150 26 344 61 111 300 645 207 100 48 . 84 488 50 779 352 77 115 453 27 849 77 144 1867 . 394 1384 Remotely 2626 | . . . . . . . . . . . . . . . 779 . . . . . . . . 1847 . . . Salvage Created 11057 | . 635 . 201 174 105 236 1635 473 44 65 . 50 535 170 1146 418 . 41 203 . 1337 36 51 149 . 1188 2165 Parts 555 | . 43 . 7 14 2 14 90 25 5 8 . 7 27 5 . 29 . 6 1 . 80 5 5 3 . 82 97 Haulers Intercepted 6 | . 2 . . . . . 3 . . . . . . . . . . . . . . . . . . . 1 Recyclers Shooed 10 | . 4 . . . . . 3 . . . . . . . . . . . . . 1 . . . . 1 1 Parts Field Recycled . | . . . . . . . . . . . . . . . . . . . . . . . . . . . . Retrieved Matter . | . . . . . . . . . . . . . . . . . . . . . . . . . . . . Parts Self-Destructed 39 | . . . . . . . . . 5 9 . 5 . . . . . 6 . 6 . 1 7 . . . . Prevented 2 | . . . . . . . . . 1 . . . . . . . . . . . . . 1 . . . . Kills | -11 -10 -10 -9 -9 -9 -8 -8 -7 -7 -7 -7 -6 -6 -5 -5 -5 -5 -5 -5 -4 -4 -4 -4 -4 -3 -3 -3 ------- Run | Yrd Mat Min Mat Min Exi Min Mat Fac Low Low Dat Pro Fac Fac Was Fac Upp Upp Zhi Pro Fac Upp Upp War Pro Res Tes Combat Hostiles Destroyed 175 | . 7 . 3 5 2 1 37 11 1 3 . 3 8 3 6 5 . 4 . . 17 3 3 4 . 23 26 Melee 69 | . . . . . 1 1 10 7 1 . . 1 8 3 . 4 . . . . 14 . . . . 11 8 Guns 35 | . 7 . 3 5 . . 12 1 . . . . . . . . . . . . 1 . 1 1 . . 4 Cannons 21 | . . . . . . . 4 . . . . . . . . 1 . . . . 2 . . 3 . 2 9 AOE 49 | . . . . . 1 . 11 3 . 3 . 2 . . 6 . . 4 . . . 3 2 . . 9 5 Classes Destroyed 21 | . 7 . 1 1 1 1 . 1 . 1 . 1 . . 1 1 . . . . 1 . . 2 . . 2 Worker 21 | . 1 1 . . . 2 6 . . . . . . . . . . . . . 3 . . . . 3 5 Builder 18 | . 1 . . 1 . 1 3 . . . . . . . . 1 . . . . 3 . . . . 6 2 Tunneler 1 | . . . . . . 1 . . . . . . . . . . . . . . . . . . . . . Hauler 6 | . 2 . . . . . 3 . . . . . . . . . . . . . . . . . . . 1 Recycler 11 | . 3 . 1 . . 1 3 . . . . . . . . . . . . . . . . . . 1 2 Mechanic 2 | . . . . . . . . . . . . . . . . . . . . . . . . . . . 2 Operator 1 | . . . . . . . . . . . . . . . . 1 . . . . . . . . . . . Drone 2 | . . . . . . . . . . . . 2 . . . . . . . . . . . . . . . Watcher 15 | . 2 . . . . . 4 . . . . . 2 . . 2 . . . . 4 . . . . . 1 Swarmer 40 | . 3 . 1 2 . . 10 3 . 3 . . . . . . . 4 . . . 3 . . . 11 . Grunt 56 | . 4 . 1 2 . . 21 5 . . . . 6 1 . . . . . . 4 . . . . 2 10 Brawler 2 | . . . . 1 . . . . . . . . . . . . . . . . . . . . . . 1 Researcher 4 | . . . . . . . . . . . . . . . . . . . . . . . . . . . 4 Sentry 15 | . . . 1 . . . 6 2 . . . . 1 . . 1 . . . . 2 . . . . 2 . Demolisher 2 | . . . . . . . . . . . . . . . . . . . . . . . . 2 . . . Hunter 10 | . . . . . . . . . . . . . . . . . . . . . 2 . 2 . . 1 5 Programmer 37 | . . . . . . . . 1 1 . . 1 1 2 . 4 . . . . 9 . . 1 . 7 10 Compactor 6 | . . . . . . . . . . . . . . . 6 . . . . . . . . . . . . Striker 1 | . . . . . . . . . . . . . . . . . . . . . . . . 1 . . . Master Thief 2 | . . . . . . . . . . 1 . . . . . . . . . . . . 1 . . . . Assembled 1 | . . . . . 1 . . . . . . . . . . . . . . . . . . . . . . Best Kill Streak 18 | . 6 1 2 3 1 3 9 3 1 3 . 2 3 2 3 2 . 4 . . 3 3 2 1 . 18 16 Combat Bots Only 9 | . 5 . 2 3 1 1 8 3 1 3 . 2 3 2 3 2 . 4 . . 3 3 2 1 . 8 9 Max Kills in Single Turn 4 | . 2 1 1 1 1 1 3 2 1 3 . 1 1 1 1 1 . 2 . . 1 3 1 1 . 4 2 Gunslinging . | . . . . . . . . . . . . . . . . . . . . . . . . . . . . Exploded 3 | . . . . . 1 . 3 2 . 3 . 1 . . 1 . . 2 . . . 3 1 . . 3 1 Melee 1 | . . . . . 1 1 1 1 1 . . 1 1 1 . 1 . . . . 1 . . . . 1 1 Uniques/NPCs Destroyed 2 | . . . . . 1 1 . . . . . . . . . . . . . . . . . . . . . 8R-AWN (-9/Exiles) 7V-RTL (-8/Mines) Combat | -11 -10 -10 -9 -9 -9 -8 -8 -7 -7 -7 -7 -6 -6 -5 -5 -5 -5 -5 -5 -4 -4 -4 -4 -4 -3 -3 -3 -------- Run | Yrd Mat Min Mat Min Exi Min Mat Fac Low Low Dat Pro Fac Fac Was Fac Upp Upp Zhi Pro Fac Upp Upp War Pro Res Tes Hostile Shots Fired 1412 | . 36 . 12 34 50 59 122 72 2 10 . 2 37 15 . 19 . 6 . 2 112 6 14 49 . 292 461 Missed 416 | . 7 . 3 7 12 10 40 23 1 4 . 2 19 2 . 3 . 1 . . 30 2 6 8 . 98 138 Damage Taken 18988 | . 360 . 134 333 653 1299 1153 734 16 93 . 75 162 255 99 394 51 70 . 38 1538 24 149 1527 . 3841 5990 Core 2053 | . 39 . 12 51 46 260 151 48 . . . 13 . . 10 49 . . . . 15 . 25 23 . 869 442 Absorbed by Shields 55 | . . . . . . . . . . . . . . . . . . . . . . . . 55 . . . Ignored by Resistances 364 | . . . . . . . . 84 . 26 . . 18 16 . 16 . . . . . . . 13 . 191 . Regen/Repaired (Parts) 940 | . . . . . . . 114 17 . . . . 148 . . . . . . . . . . 93 . . 568 Core Remaining (%) 80 | 100 . 84 . . . 7 72 . . . . 91 100 . . . . . . 94 . . . . 94 . . Volleys Fired 486 | . 52 . 10 17 3 . 86 5 . 2 . 18 10 . 52 29 3 3 . 14 39 5 10 13 6 32 77 Largest 3 | . 2 . 3 3 1 . 3 2 . 1 . 1 2 . 1 2 1 1 . 1 2 2 2 3 2 2 3 Hottest 298 | . 70 . 60 60 30 . 174 88 . 36 . 36 113 . 39 115 85 39 . 85 176 176 176 298 210 193 225 Shots Fired 796 | . 102 2 30 51 3 . 214 8 . 2 . 17 16 . 50 39 6 3 . 14 56 10 12 27 12 38 84 Gun 481 | . 102 2 30 51 2 . 171 6 . . . 15 6 . . 11 2 . . . 23 9 6 10 . 2 33 Cannon 205 | . . . . . . . 32 . . . . . 10 . . 28 3 . . 14 33 . 1 17 12 21 34 Launcher 110 | . . . . . 1 . 11 2 . 2 . 2 . . 50 . 1 3 . . . 1 5 . . 15 17 Special . | . . . . . . . . . . . . . . . . . . . . . . . . . . . . Kinetic 301 | . 66 2 30 51 2 . 63 3 . . . 15 6 . . 11 2 . . . 16 . . . . . 34 Thermal 344 | . 36 . . . . . 140 3 . . . . 10 . . 28 3 . . 14 22 9 7 27 12 15 18 Explosive 104 | . . . . . 1 . 11 2 . 2 . 2 . . 50 . 1 3 . . . 1 5 . . 15 11 Electromagnetic 47 | . . . . . . . . . . . . . . . . . . . . . 18 . . . . 8 21 Robot Hit Streak 21 | . 7 5 6 9 . . 21 12 . . . 1 4 . 10 3 . . . . 4 2 4 5 . 7 19 Robot Miss Streak 7 | . 4 . 2 6 . . 7 1 . 3 . . 2 . 2 2 . 3 . . 5 3 2 3 . 4 5 Penetration Max . | . . . . . . . . . . . . . . . . . . . . . . . . . . . . Secondary Targets 1 | . . . . 1 . . . . . . . . . . . . . . . . . . . . . . . Max Gunslinging Chain 1 | . . . . 1 . . . . . . . . . . . . . . . . . . . . . . . Capacitor 1 | . . . . . . . . . . . . . . . . . . . . . . . . . . 1 . Shots Hit Robots 780 | . 61 2 16 31 28 49 188 26 2 . . 3 30 9 33 22 . . 3 . 81 4 4 13 . 57 118 Core Hits 436 | . 30 1 10 10 7 10 103 15 1 4 . 3 14 3 16 12 . 5 2 . 39 4 9 5 . 62 71 Critical Kills 1 | . . . . . . . . . . . . . . . . . . . . . . . 1 . . . . Critical Parts Destroyed 3 | . . . . . . . . . . . . . . . . . . . . . . . . 2 . . 1 Critical Strikes 64 | . . . . . 1 4 11 1 . . . 1 1 3 . 2 . . . . 10 . 1 2 . 4 23 Burn 6 | . . . . . . . 6 . . . . . . . . . . . . . . . . . . . . Destroy 4 | . . . . . . . . . . . . . . . . . . . . . . . 1 2 . . 1 Blast 4 | . . . . . . . . . . . . . . . . . . . . . . . . . . . 4 Corrupt 1 | . . . . . . . . . . . . . . . . . . . . . . . . . . . 1 Sever 49 | . . . . . 1 4 5 1 . . . 1 1 3 . 2 . . . . 10 . . . . 4 17 Melee Attacks 441 | . . . . . 30 49 37 29 2 . . 4 41 11 . 31 . . 4 1 67 1 . 4 . 58 72 Impact . | . . . . . . . . . . . . . . . . . . . . . . . . . . . . Slashing 441 | . . . . . 30 49 37 29 2 . . 4 41 11 . 31 . . 4 1 67 1 . 4 . 58 72 Piercing . | . . . . . . . . . . . . . . . . . . . . . . . . . . . . Sneak Attacks 26 | . . . . . . 5 6 . . . . . . . . . . . . . 8 . . . . . 7 Combat Hostiles 1 | . . . . . . . . . . . . . . . . . . . . . 1 . . . . . . Follow-up Attacks . | . . . . . . . . . . . . . . . . . . . . . . . . . . . . Damage Inflicted 38836 | . 599 13 167 291 1375 2479 5540 1163 95 192 . 282 1248 415 5494 848 . 263 268 . 4056 301 500 527 . 4851 7869 Guns 4627 | . 593 7 132 265 . . 1920 85 . . . . 58 . . 114 . . . . 409 108 108 192 . 33 603 Cannons 3893 | . . . . . . . 586 . . . . . 94 . . 159 . . . . 518 . . 335 . 268 1933 Explosions 12804 | . . . . . 86 . 1226 256 . 192 . 201 . . 5494 . . 263 . . . 193 392 . . 2432 2069 Melee 17391 | . . . . . 1289 2479 1808 822 95 . . 81 1096 415 . 575 . . 268 . 3129 . . . . 2070 3264 Ramming 121 | . 6 6 35 26 . . . . . . . . . . . . . . . . . . . . . 48 . Kinetic 4130 | . 328 7 132 265 . . 950 42 . . . . 58 . . 114 . . . . 301 . . . . . 1933 Thermal 3902 | . 265 . . . . . 1556 43 . . . . 94 . . 159 . . . . 230 108 108 527 . 368 444 Explosive 12064 | . . . . . 86 . 1226 256 . 192 . 201 . . 5494 . . 263 . . . 193 392 . . 2178 1583 Electromagnetic 1228 | . . . . . . . . . . . . . . . . . . . . . 396 . . . . 187 645 Impact . | . . . . . . . . . . . . . . . . . . . . . . . . . . . . Slashing 17391 | . . . . . 1289 2479 1808 822 95 . . 81 1096 415 . 575 . . 268 . 3129 . . . . 2070 3264 Piercing . | . . . . . . . . . . . . . . . . . . . . . . . . . . . . Highest Corruption 24 | . 2 2 . . . . . 1 1 1 1 1 . 1 22 23 23 23 23 23 11 11 11 11 1 7 24 Average Corruption 8 | . 2 2 . . . . . 1 1 1 1 1 . 1 10 22 23 23 23 23 4 11 11 3 1 3 13 Corruption Purged 2 | . . . . . . . . . . . . . . . . . . . . . . . . . . 2 . Corruption Blocked 54 | . . . . . . . . . . . . . . . . . . . . . . . . . . . 54 Effects 366 | . 10 23 . . . . . 11 2 4 2 2 . 1 10 81 27 9 15 12 30 23 23 . 9 15 57 Message Errors 94 | . 5 4 . . . . . 2 1 1 . . . . 2 26 7 4 4 4 6 6 3 . 3 1 15 Matter Fused 80 | . 2 8 . . . . . 3 . 1 . . . . 1 18 3 2 3 2 7 5 5 . 1 5 14 Heat Flow Errors 40 | . . 2 . . . . . . . . . . . . 1 7 4 2 1 3 6 5 2 . . . 7 Energy Discharges 42 | . 1 3 . . . . . 2 . . . . . 1 2 10 1 . 2 . 3 3 3 . 2 3 6 Parts Rejected 3 | . . . . . . . . . . . . . . . 1 . . . . . 1 . . . . . 1 Parts Fused 2 | . . . . . . . . . . . 1 . . . . 1 . . . . . . . . . . . Data Loss (minor) 50 | . . 3 . . . . . 3 . 1 1 1 . . . 8 5 1 2 3 3 2 4 . 1 4 8 Data Loss (major) 18 | . . 1 . . . . . . 1 . . . . . 1 6 . . 1 . 2 1 2 . 2 . 1 Misfires 15 | . 1 2 . . . . . . . . . . . . . 3 4 . . . 1 1 1 . . 1 1 Alerts 7 | . 1 . . . . . . 1 . 1 . . . . . . 2 . 2 . . . . . . . . Misdirections 3 | . . . . . . . . . . . . . . . . . . . . . . . 1 . . . 2 Weapon Failures 12 | . . . . . . . . . . . . 1 . . 2 2 1 . . . 1 . 2 . . 1 2 Overload Shots 1 | . . . . . . . . . . . . . . . . . . . . . . . . . . 1 . Overflow Damage 1782 | . . . . . . 253 331 20 8 . . 3 47 32 . 25 . . 75 . 287 . . 43 . 174 484 Projectiles 103 | . . . . . . . . . . . . . . . . . . . . . . . . 43 . 4 56 Explosions 309 | . . . . . . . 4 5 . . . 3 . . . . . . . . . . . . . 99 198 Melee 1370 | . . . . . . 253 327 15 8 . . . 47 32 . 25 . . 75 . 287 . . . . 71 230 Knockbacks 18 | . . . 1 . . . 11 . . . . . . . . . . . . . . . . . . 1 5 Impact 2 | . . . 1 . . . . . . . . . . . . . . . . . . . . . . 1 . Kinetic 15 | . . . . . . . 10 . . . . . . . . . . . . . . . . . . . 5 Secondary 1 | . . . . . . . 1 . . . . . . . . . . . . . . . . . . . . Self-Inflicted Damage 760 | . . . . . . . . 23 . 43 . 76 . . 104 . 51 . . . . . . . . 162 301 Shots 21 | . . . . . . . . 1 . 1 . 2 . . 5 . 1 . . . . . . . . 4 7 Rammed 9 | . . . 4 3 . . . . . . . . . . . . . . . . . . . . . 2 . Targets Rammed 16 | . 3 3 4 4 . . . . . . . . . . . . . . . . . . . . . 2 . Kicked 6 | . 3 3 . . . . . . . . . . . . . . . . . . . . . . . . . Crushed 1 | . . . . 1 . . . . . . . . . . . . . . . . . . . . . . . Highest Temperature 442 | . 230 108 2 6 . . 306 45 . 276 . . 90 . 299 245 215 235 156 198 318 344 251 382 222 111 442 Average Temperature 85 | . 58 58 2 6 . . 57 24 . 144 . . 29 . 147 94 98 117 83 116 93 133 97 141 101 33 118 Received Heat Transfer 2615 | . 204 . 54 108 . 225 567 156 . . . . 57 42 . 18 . . . 12 126 . . 161 . 271 614 Effects 9 | . . . . . . . . . . . . . . . 4 . . . . . . . . 1 . . 4 Energy Bleed 2 | . . . . . . . . . . . . . . . . . . . . . . . . 1 . . 1 Interference 7 | . . . . . . . . . . . . . . . 4 . . . . . . . . . . . 3 Siege Activations 2 | . . . . . . . . . . . . . . . . . . . . . 1 1 . . . . . Total Turns 36 | . . . . . . . . . . . . . . . . . . . . . 26 10 . . . . . Longest Duration 26 | . . . . . . . . . . . . . . . . . . . . . 26 10 . . . . . Robots Corrupted 1 | . . . . . . . . . . . . . . . . . . . . . . . . . . 1 . Combat Hostiles 1 | . . . . . . . . . . . . . . . . . . . . . . . . . . 1 . Parts Fried 7 | . . . . . . . . . . . . . . . . . . . . . 4 . . . . . 3 Impact Corruptions 1 | . . . . . . . . . . . . . . . . . . . . . . . . . . 1 . Robots Melted . | . . . . . . . . . . . . . . . . . . . . . . . . . . . . Combat Hostiles . | . . . . . . . . . . . . . . . . . . . . . . . . . . . . Parts Melted 10 | . 3 . . . . . 4 2 . . . . 1 . . . . . . . . . . . . . . Heat Transferred 7079 | . 777 . . . . . 4181 111 . . . . 111 . . 185 . . . . 296 148 148 363 . 261 498 Parts Sabotaged . | . . . . . . . . . . . . . . . . . . . . . . . . . . . . Parts Stolen 4 | . . . . . . . . . . 1 . . . . . . . . . . . 2 1 . . . . Parts Stripped . | . . . . . . . . . . . . . . . . . . . . . . . . . . . . Power Chain Reactions 1 | . . . . . . . . . . . . . . . . . . . . . . . . . . 1 . Alert | -11 -10 -10 -9 -9 -9 -8 -8 -7 -7 -7 -7 -6 -6 -5 -5 -5 -5 -5 -5 -4 -4 -4 -4 -4 -3 -3 -3 ------- Run | Yrd Mat Min Mat Min Exi Min Mat Fac Low Low Dat Pro Fac Fac Was Fac Upp Upp Zhi Pro Fac Upp Upp War Pro Res Tes Peak Influence 731 | . 147 34 223 196 . 15 665 217 . . . . 204 104 230 214 . . . . 316 . . . . 440 731 Initial 234 | . . 24 . 70 . . 3 173 . . . . . 54 36 161 . . . . . . . . . . 234 Average 147 | . 69 13 134 138 . 4 413 117 . . . . 72 63 137 76 . . . . 96 . . . . 53 422 Maximum Alert Level 3 | . . . 1 . . . 2 1 . . . . 1 . 1 1 . . . . 1 . . . . 2 3 Low Security (%) 75 | . 100 100 92 100 . 100 10 85 . . . . 96 100 68 82 . . . . 90 . . . . 94 . Level 1 14 | . . . 7 . . . 32 14 . . . . 3 . 31 17 . . . . 9 . . . . 3 56 Level 2 10 | . . . . . . . 56 . . . . . . . . . . . . . . . . . . 1 42 Level 3 . | . . . . . . . . . . . . . . . . . . . . . . . . . . . 1 Level 4 . | . . . . . . . . . . . . . . . . . . . . . . . . . . . . Level 5 . | . . . . . . . . . . . . . . . . . . . . . . . . . . . . High Security . | . . . . . . . . . . . . . . . . . . . . . . . . . . . . Max Security . | . . . . . . . . . . . . . . . . . . . . . . . . . . . . Squads Dispatched 47 | . . . 4 . . . 5 7 . . . . 4 1 . 3 . . . . 9 . . . . 3 11 Investigation 11 | . . . 3 . . . 2 1 . . . . 2 . . 1 . . . . 2 . . . . . . Extermination 17 | . . . . . . . . 2 . . . . 2 1 . 2 . . . . 5 . . . . 2 3 Reinforcement 18 | . . . 1 . . . 3 4 . . . . . . . . . . . . 2 . . . . 1 7 Assault 1 | . . . . . . . . . . . . . . . . . . . . . . . . . . . 1 Garrison . | . . . . . . . . . . . . . . . . . . . . . . . . . . . . Intercept . | . . . . . . . . . . . . . . . . . . . . . . . . . . . . Searches Triggered . | . . . . . . . . . . . . . . . . . . . . . . . . . . . . Data Miner Redirects 1 | . . . . . . . . . . . . . . . . . . . . . . . . . . . 1 Construction Impeded 2 | . . . . . . . 1 . . . . . . . . . . . . . . . . . . . 1 Haulers Reinforced 1 | . . . . . . . . . . . . . . . . . . . . . . . . . . 1 . Active Scanning Responses . | . . . . . . . . . . . . . . . . . . . . . . . . . . . . Cargo Convoy Interrupts 1 | . . . . . . . . 1 . . . . . . . . . . . . . . . . . . . Stealth | -11 -10 -10 -9 -9 -9 -8 -8 -7 -7 -7 -7 -6 -6 -5 -5 -5 -5 -5 -5 -4 -4 -4 -4 -4 -3 -3 -3 --------- Run | Yrd Mat Min Mat Min Exi Min Mat Fac Low Low Dat Pro Fac Fac Was Fac Upp Upp Zhi Pro Fac Upp Upp War Pro Res Tes Distress Signals 11 | . . 1 1 . . . 3 . . . . . 2 1 . . . . . . 1 . . . . . 2 Communications Jammed 7 | . . . . . . . . . . . . . . . . . . . . . . . . . . 7 . Distress Signals 7 | . . . . . . . . . . . . . . . . . . . . . . . . . . 7 . Times Spotted 337 | . 13 . 10 5 3 1 61 13 1 5 . 2 16 5 6 9 . 3 . 1 32 6 4 58 . 31 52 Peak Tracking Total 14 | . 6 . 4 3 9 1 10 4 1 3 . 1 5 2 3 2 . 4 . 1 5 3 2 14 . 6 6 Tactical Retreats 17 | . 1 . 1 . . . 9 . . . . . . 2 . . . . . . 1 . . 2 . . 1 Traps | -11 -10 -10 -9 -9 -9 -8 -8 -7 -7 -7 -7 -6 -6 -5 -5 -5 -5 -5 -5 -4 -4 -4 -4 -4 -3 -3 -3 ------- Run | Yrd Mat Min Mat Min Exi Min Mat Fac Low Low Dat Pro Fac Fac Was Fac Upp Upp Zhi Pro Fac Upp Upp War Pro Res Tes Traps Triggered 22 | . 1 . 1 . . . 2 5 . . . . 2 1 . 1 . . . . 5 . . 2 . 1 1 Indirectly . | . . . . . . . . . . . . . . . . . . . . . . . . . . . . Trap Hack Attempts . | . . . . . . . . . . . . . . . . . . . . . . . . . . . . Triggered . | . . . . . . . . . . . . . . . . . . . . . . . . . . . . Disarmed . | . . . . . . . . . . . . . . . . . . . . . . . . . . . . Reprogrammed . | . . . . . . . . . . . . . . . . . . . . . . . . . . . . Reused . | . . . . . . . . . . . . . . . . . . . . . . . . . . . . Traps Extracted . | . . . . . . . . . . . . . . . . . . . . . . . . . . . . Installed . | . . . . . . . . . . . . . . . . . . . . . . . . . . . . Triggered 14 | . . . . . . . . 3 1 . . . . . . . . 4 . 3 . . . 3 . . . Machines | -11 -10 -10 -9 -9 -9 -8 -8 -7 -7 -7 -7 -6 -6 -5 -5 -5 -5 -5 -5 -4 -4 -4 -4 -4 -3 -3 -3 ---------- Run | Yrd Mat Min Mat Min Exi Min Mat Fac Low Low Dat Pro Fac Fac Was Fac Upp Upp Zhi Pro Fac Upp Upp War Pro Res Tes Machines Disabled 16 | . . . . . 3 . . . . . . . 1 . . 3 . . 1 . 1 1 . . . . 6 Max in Single Turn 2 | . . . . . 2 . . . . . . . 1 . . 1 . . 1 . 1 1 . . . . 1 Garrison Access 4 | . . . . . . . 1 2 . . . . . . . 1 . . . . . . . . . . . Machines Repaired . | . . . . . . . . . . . . . . . . . . . . . . . . . . . . Machines Dismantled . | . . . . . . . . . . . . . . . . . . . . . . . . . . . . Machines Sabotaged . | . . . . . . . . . . . . . . . . . . . . . . . . . . . . Overloaded Fab Kills . | . . . . . . . . . . . . . . . . . . . . . . . . . . . . Hacking | -11 -10 -10 -9 -9 -9 -8 -8 -7 -7 -7 -7 -6 -6 -5 -5 -5 -5 -5 -5 -4 -4 -4 -4 -4 -3 -3 -3 --------- Run | Yrd Mat Min Mat Min Exi Min Mat Fac Low Low Dat Pro Fac Fac Was Fac Upp Upp Zhi Pro Fac Upp Upp War Pro Res Tes Machines Accessed 80 | . 2 . 3 . 1 . 10 12 1 . 3 . 14 3 . 8 1 . 4 . 11 1 . 1 1 3 1 Terminals 43 | . 2 . 3 . . . 6 4 . . . . 9 2 . 5 . . . . 8 . . . 1 2 1 Fabricators 7 | . . . . . . . . 2 . . . . 2 . . 1 . . . . 2 . . . . . . Repair Stations 9 | . . . . . . . 2 2 . . . . 2 . . 1 . . . . 1 . . . . 1 . Recycling Units . | . . . . . . . . . . . . . . . . . . . . . . . . . . . . Scanalyzers 4 | . . . . . . . 1 2 . . . . 1 . . . . . . . . . . . . . . Garrison Access 5 | . . . . . . . 1 2 . . . . . 1 . 1 . . . . . . . . . . . Total Hacks 213 | . 3 . 10 . 1 . 24 36 1 . 23 . 39 5 . 9 1 . 17 . 28 1 . 3 1 9 2 Successful 121 | . 1 . 3 . 1 . 13 17 1 . 23 . 23 . . 1 1 . 17 . 11 1 . 3 1 3 1 Failed 90 | . 1 . 6 . . . 11 19 . . . . 16 5 . 8 . . . . 17 . . . . 6 1 Catastrophic 24 | . . . . . . . 4 3 . . . . 4 2 . 4 . . . . 4 . . . . 3 . Database Lockouts 2 | . 1 . 1 . . . . . . . . . . . . . . . . . . . . . . . . Manual 79 | . 3 . 10 . 1 . 15 10 . . . . 13 2 . 3 . . . . 14 . . 1 . 7 . Terminals 102 | . 3 . 10 . . . 16 9 . . . . 23 3 . 6 . . . . 22 . . . 1 7 2 Fabricators 20 | . . . . . . . . 5 . . . . 9 . . 1 . . . . 5 . . . . . . Repair Stations 18 | . . . . . . . 4 6 . . . . 4 . . 1 . . . . 1 . . . . 2 . Recycling Units . | . . . . . . . . . . . . . . . . . . . . . . . . . . . . Scanalyzers 18 | . . . . . . . 3 12 . . . . 3 . . . . . . . . . . . . . . Garrison Access 8 | . . . . . . . 1 4 . . . . . 2 . 1 . . . . . . . . . . . Terminal Hacks 67 | . 1 . 2 . 1 . 4 . 1 . 23 . 6 . . . 1 . 17 . 3 1 . 3 1 2 1 Record 16 | . . . . . . . . . . . 6 . . . . . . . 5 . . 1 . 3 1 . . Part Schematic 17 | . . . . . . . 1 . . . 9 . 2 . . . . . 4 . 1 . . . . . . Robot Schematic 5 | . . . . . . . . . . . 5 . . . . . . . . . . . . . . . . Robot Analysis 6 | . 1 . 1 . . . . . . . . . . . . . . . 4 . . . . . . . . Prototype ID Bank 8 | . . . . . . . . . . . 3 . 1 . . . . . 4 . . . . . . . . Open Door 3 | . . . . . . . . . 1 . . . . . . . 1 . . . . . . . . . 1 Branch Access Points 3 | . . . . . . . . . . . . . 1 . . . . . . . 1 . . . . 1 . Fabricator Index 1 | . . . . . . . . . . . . . 1 . . . . . . . . . . . . . . Alert Level 1 | . . . . . . . 1 . . . . . . . . . . . . . . . . . . . . Unreport Threat 3 | . . . . . . . 2 . . . . . . . . . . . . . . . . . . 1 . Locate Traps 1 | . . . . . . . . . . . . . . . . . . . . . 1 . . . . . . Maintenance Status 1 | . . . 1 . . . . . . . . . . . . . . . . . . . . . . . . Zone Layout 1 | . . . . . . . . . . . . . 1 . . . . . . . . . . . . . . Derelict Proto ID Bank 1 | . . . . . 1 . . . . . . . . . . . . . . . . . . . . . . Fabricator Hacks 10 | . . . . . . . . 1 . . . . 4 . . . . . . . 5 . . . . . . Network Status 2 | . . . . . . . . 1 . . . . . . . . . . . . 1 . . . . . . Load Schematic 5 | . . . . . . . . . . . . . 3 . . . . . . . 2 . . . . . . Build 3 | . . . . . . . . . . . . . 1 . . . . . . . 2 . . . . . . Repair Station Hacks 11 | . . . . . . . 3 4 . . . . 3 . . . . . . . . . . . . 1 . Scan Component 7 | . . . . . . . 2 2 . . . . 2 . . . . . . . . . . . . 1 . Repair 4 | . . . . . . . 1 2 . . . . 1 . . . . . . . . . . . . . . Recycling Unit Hacks . | . . . . . . . . . . . . . . . . . . . . . . . . . . . . Scanalyzer 13 | . . . . . . . 3 7 . . . . 3 . . . . . . . . . . . . . . Insert Component 8 | . . . . . . . 2 4 . . . . 2 . . . . . . . . . . . . . . Analyze 5 | . . . . . . . 1 3 . . . . 1 . . . . . . . . . . . . . . Garrison Access Hacks 4 | . . . . . . . 1 2 . . . . . . . 1 . . . . . . . . . . . Seal Access 4 | . . . . . . . 1 2 . . . . . . . 1 . . . . . . . . . . . Unauthorized Hacks 16 | . . . 1 . . . 2 3 . . . . 7 . . . . . . . 3 . . . . . . Terminals 14 | . . . 1 . . . 2 2 . . . . 6 . . . . . . . 3 . . . . . . Assimilate 1 | . . . . . . . . . . . . . . . . . . . . . 1 . . . . . . Botnet 13 | . . . 1 . . . 2 2 . . . . 6 . . . . . . . 2 . . . . . . Fabricators 2 | . . . . . . . . 1 . . . . 1 . . . . . . . . . . . . . . Liberate 1 | . . . . . . . . 1 . . . . . . . . . . . . . . . . . . . Recompile 1 | . . . . . . . . . . . . . 1 . . . . . . . . . . . . . . Repair Stations . | . . . . . . . . . . . . . . . . . . . . . . . . . . . . Recycling Units . | . . . . . . . . . . . . . . . . . . . . . . . . . . . . Scanalyzers . | . . . . . . . . . . . . . . . . . . . . . . . . . . . . Garrison Access . | . . . . . . . . . . . . . . . . . . . . . . . . . . . . Data Cores Recovered 1 | . . . . . . . . . . . . . . . . 1 . . . . . . . . . . . Used 1 | . . . . . . . . . . . . . . . . 1 . . . . . . . . . . . Hacking Detections 58 | . 1 . 2 . . . 9 8 . . . . 13 3 . 7 . . . . 11 . . . . 3 1 Full Trace Events 5 | . . . . . . . . 1 . . . . 1 . . 1 . . . . 2 . . . . . . Feedback Events . | . . . . . . . . . . . . . . . . . . . . . . . . . . . . Feedback Blocked . | . . . . . . . . . . . . . . . . . . . . . . . . . . . . Robot Schematics Acquired 6 | . . . . . . . . . . . 5 . . . . . . . . . . . . . . . 1 Robots Built . | . . . . . . . . . . . . . . . . . . . . . . . . . . . . Authchips . | . . . . . . . . . . . . . . . . . . . . . . . . . . . . Time . | . . . . . . . . . . . . . . . . . . . . . . . . . . . . Total Robot Build Rating . | . . . . . . . . . . . . . . . . . . . . . . . . . . . . Part Schematics Acquired 24 | . . . . . . . 2 1 . . 9 . 3 . . . . . 4 . 1 . . . . . 4 Parts Built 3 | . . . . . . . . . . . . . 1 . . . . . . . 2 . . . . . . Authchips 1 | . . . . . . . . . . . . . 1 . . . . . . . . . . . . . . Time 382 | . . . . . . . . . . . . . 102 . . . . . . . 280 . . . . . . Total Part Build Rating 21 | . . . . . . . . . . . . . 8 . . . . . . . 13 . . . . . . Parts Repaired 4 | . . . . . . . 1 2 . . . . 1 . . . . . . . . . . . . . . Time 354 | . . . . . . . 38 272 . . . . 44 . . . . . . . . . . . . . . Parts Recycled . | . . . . . . . . . . . . . . . . . . . . . . . . . . . . Recycled Matter . | . . . . . . . . . . . . . . . . . . . . . . . . . . . . Retrieved Matter . | . . . . . . . . . . . . . . . . . . . . . . . . . . . . Retrieved Components . | . . . . . . . . . . . . . . . . . . . . . . . . . . . . Parts Scanalyzed 3 | . . . . . . . 1 1 . . . . 1 . . . . . . . . . . . . . . Part Schematics Acquired 3 | . . . . . . . 1 1 . . . . 1 . . . . . . . . . . . . . . Parts Damaged 2 | . . . . . . . . 2 . . . . . . . . . . . . . . . . . . . Bothacking | -11 -10 -10 -9 -9 -9 -8 -8 -7 -7 -7 -7 -6 -6 -5 -5 -5 -5 -5 -5 -4 -4 -4 -4 -4 -3 -3 -3 ------------ Run | Yrd Mat Min Mat Min Exi Min Mat Fac Low Low Dat Pro Fac Fac Was Fac Upp Upp Zhi Pro Fac Upp Upp War Pro Res Tes Used RIF Installer . | . . . . . . . . . . . . . . . . . . . . . . . . . . . . Robots Hacked . | . . . . . . . . . . . . . . . . . . . . . . . . . . . . Non-combat . | . . . . . . . . . . . . . . . . . . . . . . . . . . . . Combat . | . . . . . . . . . . . . . . . . . . . . . . . . . . . . Robot Hacks Applied . | . . . . . . . . . . . . . . . . . . . . . . . . . . . . Relay Couplers Released 3 | . . . . . . . . . . . . . . . . . . . . . . . . . . 3 . Programmers 3 | . . . . . . . . . . . . . . . . . . . . . . . . . . 3 . Fabnet Peak Effective % . | . . . . . . . . . . . . . . . . . . . . . . . . . . . . Robots Rewired 2 | . . . . . . . . . . 1 . . . . . . . . . . . . . . . . 1 Allies Hacked . | . . . . . . . . . . . . . . . . . . . . . . . . . . . . Hacks Repelled . | . . . . . . . . . . . . . . . . . . . . . . . . . . . . Allies | -11 -10 -10 -9 -9 -9 -8 -8 -7 -7 -7 -7 -6 -6 -5 -5 -5 -5 -5 -5 -4 -4 -4 -4 -4 -3 -3 -3 -------- Run | Yrd Mat Min Mat Min Exi Min Mat Fac Low Low Dat Pro Fac Fac Was Fac Upp Upp Zhi Pro Fac Upp Upp War Pro Res Tes Total Allies 13 | . . 3 . 3 . . . 3 . 1 . . . . . . . . . . 1 . . 1 . . 1 Largest Group 3 | . . 2 2 3 3 . . 3 . 1 . . . . . . . . . . 1 . . 1 . . 1 Highest-Rated Group 99 | . . 45 45 40 40 . . 48 . 68 . . . . . . . . . . 45 . . 99 . . 51 Highest-Rated Ally 99 | . . 31 31 31 16 . . 16 . 68 . . . . . . . . . . 45 . . 99 . . 51 Total Orders 7 | . . . . . 5 . . . . . . . . . . 2 . . . . . . . . . . . STAY 3 | . . . . . 3 . . . . . . . . . . . . . . . . . . . . . . FOLLOW 2 | . . . . . 2 . . . . . . . . . . . . . . . . . . . . . . EXPLORE 2 | . . . . . . . . . . . . . . . . 2 . . . . . . . . . . . Ally Attacks 71 | . . 2 24 1 8 . . 12 . . . . . . . . . . . . . . . 18 . . 6 Total Damage 2180 | . . 21 336 21 36 . . 108 . . . . . . . . . . . . . . . 1475 . . 183 Kills 13 | . . 1 9 1 . . . . . . . . . . . . . . . . . . . 2 . . . Allies Corrupted . | . . . . . . . . . . . . . . . . . . . . . . . . . . . . Allies Melted . | . . . . . . . . . . . . . . . . . . . . . . . . . . . . Intel | -11 -10 -10 -9 -9 -9 -8 -8 -7 -7 -7 -7 -6 -6 -5 -5 -5 -5 -5 -5 -4 -4 -4 -4 -4 -3 -3 -3 ------- Run | Yrd Mat Min Mat Min Exi Min Mat Fac Low Low Dat Pro Fac Fac Was Fac Upp Upp Zhi Pro Fac Upp Upp War Pro Res Tes Robot Analysis Total 6 | . 1 . 1 . . . . . . . . . . . . . . . 4 . . . . . . . . Derelict Logs Recovered 9 | . . 1 . 1 . . . . 1 . . 1 . . . . 1 . . 1 . 2 1 . . . . Drone Launches 3 | . . . . . . . . . . . . . . . . 3 . . . . . . . . . . . Drone Recoveries . | . . . . . . . . . . . . . . . . . . . . . . . . . . . . Exploration | -11 -10 -10 -9 -9 -9 -8 -8 -7 -7 -7 -7 -6 -6 -5 -5 -5 -5 -5 -5 -4 -4 -4 -4 -4 -3 -3 -3 ------------- Run | Yrd Mat Min Mat Min Exi Min Mat Fac Low Low Dat Pro Fac Fac Was Fac Upp Upp Zhi Pro Fac Upp Upp War Pro Res Tes Turns Passed 23045 | . 1081 1206 724 378 712 290 2062 1682 482 342 100 861 1645 732 247 1636 548 168 316 300 2340 624 527 857 622 1296 1267 Spaces Moved 13013 | 1 533 433 386 200 357 94 930 1042 345 235 83 510 1058 519 142 961 364 119 181 195 1454 439 367 478 373 678 536 Core 35 | . . . . . . 4 . . . . . . . . . . . . . . . . . . . 18 13 Treads 1061 | . . . 354 200 357 31 87 . . . . . . . . . . . . . . . 1 . . . 31 Legs 999 | 1 533 433 32 . . . . . . . . . . . . . . . . . . . . . . . . Wheels 10847 | . . . . . . 59 843 1042 345 235 83 510 1058 519 142 961 364 119 181 195 1454 439 366 478 373 660 421 Hover . | . . . . . . . . . . . . . . . . . . . . . . . . . . . . Flight 71 | . . . . . . . . . . . . . . . . . . . . . . . . . . . 71 Fastest Speed 40 | 120 120 260 160 160 160 50 101 116 135 120 120 135 130 130 130 130 130 130 130 130 130 130 130 130 145 50 40 Average Speed 143 | 120 167 260 168 160 160 131 164 124 135 134 120 135 130 130 130 134 130 130 130 130 130 130 130 132 145 142 155 Slowest Speed 2600 | 120 260 260 260 160 160 160 320 135 135 135 135 135 130 130 130 145 130 145 130 130 130 130 320 145 145 190 2600 Overloaded Moves . | . . . . . . . . . . . . . . . . . . . . . . . . . . . . Propulsion Burnouts . | . . . . . . . . . . . . . . . . . . . . . . . . . . . . Robots Hopped . | . . . . . . . . . . . . . . . . . . . . . . . . . . . . Cave-ins Triggered . | . . . . . . . . . . . . . . . . . . . . . . . . . . . . Exploration Rate (%) 46 | 2 76 95 35 55 62 11 71 31 49 42 69 72 35 10 69 36 58 23 60 27 38 66 52 53 59 23 33 Regions Visited 27 Branch Regions 17 Pre-discovered Areas 5 | . . 1 . . . . . . . . 1 . . . . . . . 3 . . . . . . . . Known Exits Taken 18 | . . . . . . . 1 1 1 1 1 1 1 . . 1 1 1 1 1 1 1 1 1 1 1 . Unknown Exits Taken 7 | 1 1 1 1 1 1 1 . . . . . . . . . . . . . . . . . . . . . Scrap Searched 14 | . . 2 . . . . . . 1 2 . 1 . . . . 3 1 . 1 . 2 1 . . . . Spaces Dug 125 | . . . . . . . . 9 . . . 23 18 2 . 26 1 . . 6 13 . 1 3 4 17 2 Terrain Destroyed 885 | . . . . . 6 . 69 15 . 15 . 31 19 2 227 36 16 45 . 15 18 21 75 6 12 121 136 Melee 61 | . . . . . . . . 9 . . . 1 15 2 . 16 . . . 1 5 . . . . 10 2 Projectile 107 | . . . . . . . . . . . . 14 4 . . 20 3 . . 14 13 . 1 6 12 11 9 AOE 717 | . . . . . 6 . 69 6 . 15 . 16 . . 227 . 13 45 . . . 21 74 . . 100 125 Terrain Rammed . | . . . . . . . . . . . . . . . . . . . . . . . . . . . . Walls Destroyed . | . . . . . . . . . . . . . . . . . . . . . . . . . . . . Machines Disabled . | . . . . . . . . . . . . . . . . . . . . . . . . . . . . Actions | -11 -10 -10 -9 -9 -9 -8 -8 -7 -7 -7 -7 -6 -6 -5 -5 -5 -5 -5 -5 -4 -4 -4 -4 -4 -3 -3 -3 --------- Run | Yrd Mat Min Mat Min Exi Min Mat Fac Low Low Dat Pro Fac Fac Was Fac Upp Upp Zhi Pro Fac Upp Upp War Pro Res Tes Total 16375 | . 632 510 448 228 467 207 1249 1392 358 259 83 662 1296 571 203 1246 435 129 258 225 1790 483 401 674 441 929 799 Wait 1750 | . 15 69 16 6 52 31 142 256 4 8 . 128 143 34 . 189 60 1 46 12 181 28 7 142 61 88 31 Move 12988 | . 532 432 385 199 356 93 929 1041 344 234 82 509 1057 519 141 960 363 118 180 194 1453 438 366 477 372 678 536 Hop . | . . . . . . . . . . . . . . . . . . . . . . . . . . . . Pick Up 144 | . 12 2 14 . 8 16 12 12 1 1 . . 9 2 1 5 . . 3 2 8 4 6 5 . 13 8 Fast Attach 113 | . 3 2 . . 1 7 12 7 . 2 . . 2 . 1 5 2 . 9 . 4 . 2 8 . 8 38 Attach 80 | . 1 . 5 . 6 8 5 5 1 1 1 1 3 1 2 3 . . 3 . 2 . . 5 . 11 16 Detach 22 | . 2 1 . . . . 2 1 . 3 . . . . 1 . . 2 1 . . . . . . . 9 Swap 145 | . 4 . 3 1 3 2 10 11 4 2 . 2 6 4 4 14 4 3 1 2 26 3 5 7 2 18 4 Drop 156 | . 8 1 11 1 8 1 14 17 2 4 . . 9 . 1 10 3 2 11 . 10 4 5 13 . 14 7 Fire 486 | . 52 . 10 17 3 . 86 5 . 2 . 18 10 . 52 29 3 3 . 14 39 5 10 13 6 32 77 Melee 441 | . . . . . 30 49 37 29 2 . . 4 41 11 . 31 . . 4 1 67 1 . 4 . 58 72 Ram 1 | . . . . . . . . . . . . . . . . . . . . . . . . . . 1 . Kick 6 | . 3 3 . . . . . . . . . . . . . . . . . . . . . . . . . Crush 8 | . . . 4 4 . . . . . . . . . . . . . . . . . . . . . . . Escape Stasis 32 | . . . . . . . . 8 . . . . 16 . . . . . . . . . . . . 8 . Rewire 3 | . . . . . . . . . . 2 . . . . . . . . . . . . . . . . 1 Trap . | . . . . . . . . . . . . . . . . . . . . . . . . . . . . Miscellaneous . | . . . . . . . . . . . . . . . . . . . . . . . . . . . . Route ------- -11/Scrapyard -10/Materials (discovered 4 exits: *Mat x2 / [*Min x2]) -10/Mines (discovered 2 exits: *Mat x2) -9/Materials (discovered 2 exits: *Mat / [*Min]) -9/Mines (discovered 2 exits: *Mat / *Exi) -9/Exiles -8/Mines -8/Materials (discovered 3 exits: *Fac x2 / [*Sto]) -7/Factory (discovered 3 exits: *Fac x2 / *Low) -7/Lower Caves -7/Lower Caves -7/Data Miner -6/Proximity Caves -6/Factory (discovered 3 exits: *Fac / *Low x2) -5/Factory -5/Waste -5/Factory -5/Upper Caves -5/Upper Caves -5/Zhirov -4/Proximity Caves -4/Factory (discovered 3 exits: *Res / *Upp x2) -4/Upper Caves -4/Upper Caves (discovered 2 exits: *Res / *War) -4/Warlord -3/Proximity Caves -3/Research (discovered 5 exits: *Res x2 / Arm / *Tes x2) -3/Testing History --------- Turn | Location | Event 1 | -11/Scrapyard | Discovered new exit (range 0) 1 | -11/Scrapyard | Entered Materials 15 | -10/Materials | Central database locked down 140 | -10/Materials | Discovered new exit (range 9) 271 | -10/Materials | Discovered new exit (range 12) 304 | -10/Materials | Build established: Mutant 347 | -10/Materials | Discovered new exit (range 11) 798 | -10/Materials | Discovered new exit (range 12) 1082 | -10/Materials | Entered Mines 1085 | -10/Mines | Received a Mining Laser from a helpful Derelict 1099 | -10/Mines | Discovered new exit (range 6) 1139 | -10/Mines | Assembled infested the area 1144 | -10/Mines | Assisted by a Guerilla fighting off Assembled 1399 | -10/Mines | A weapon hastily lodged in a ceiling crevice suddenly fell to the ground 1419 | -10/Mines | Learned location of Mines (-9) 2035 | -10/Mines | Found a damaged Exp. Sensor Array with a note attached 2041 | -10/Mines | Found Prototype Device 2041 | -10/Mines | Identified Exp. Sensor Array 2265 | -10/Mines | Discovered new exit (range 9) 2288 | -10/Mines | Entered Materials 2288 | -9/Materials | Accompanied by 2 allies 2288 | -9/Materials | Evolved 2 slots: Propulsion x1, Weapon x1 2293 | -9/Materials | Led the pair of lost Derelicts to an unsafe place 2583 | -9/Materials | Build established: Scavenger-Gunner 2671 | -9/Materials | Discovered new exit (range 3) 2962 | -9/Materials | Discovered new exit (range 15) 2981 | -9/Materials | Central database locked down 3012 | -9/Materials | Entered Mines 3012 | -9/Mines | Accompanied by 1 ally 3025 | -9/Mines | Discovered new exit (range 10) 3339 | -9/Mines | Assisted by bots powering up and referring to "LRC-V3" 3380 | -9/Mines | Deemed a non-threat by the Exiles lab entrance 3380 | -9/Mines | Discovered new exit (range 5) 3390 | -9/Mines | Entered Exiles 3390 | -9/Exiles | Accompanied by 3 allies 3436 | -9/Exiles | Met 8R-AWN 3462 | -9/Exiles | Met EX-HEX 3506 | -9/Exiles | Met EX-BIN 3529 | -9/Exiles | Aligned with FarCom system 3530 | -9/Exiles | Given EX-Vault access code 3567 | -9/Exiles | Opened EX-Vault 3579 | -9/Exiles | Found Longsword +1 3616 | -9/Exiles | Warned to stay clear of 0b10 Research branches 3660 | -9/Exiles | Met EX-DEC 3815 | -9/Exiles | Attacked by the Exiles 3938 | -9/Exiles | Lost 3 allies 3997 | -9/Exiles | Destroyed 8R-AWN 4004 | -9/Exiles | Found Prototype Processor 4019 | -9/Exiles | Lost 5 parts (1p2n1u1w) 4086 | -9/Exiles | Discovered new exit (range 10) 4102 | -9/Exiles | Left Exiles lab with Longsword +1 4102 | -9/Exiles | Entered Mines 4155 | -8/Mines | Discovered new exit (range 7) 4164 | -8/Mines | Build established: Scavenger-Mutant 4188 | -8/Mines | 7V-RTL came to Exiles' defense 4252 | -8/Mines | Core integrity fell below 50% 4280 | -8/Mines | Core integrity fell below 20% 4280 | -8/Mines | Destroyed 7V-RTL 4282 | -8/Mines | Released all parts (4) 4290 | -8/Mines | Found Prototype Device 4290 | -8/Mines | Identified 7V-RTL's Ultimate Field 4307 | -8/Mines | Lost 12 parts (2p4n2u4w) 4309 | -8/Mines | Found Adv. Powered Armor 4312 | -8/Mines | Found Adv. Powered Armor 4392 | -8/Mines | Entered Materials 4392 | -8/Materials | Evolved 2 slots: Utility x2 4393 | -8/Materials | Identified exit to Factory 4393 | -8/Materials | Identified Exp. Targeting Computer 4971 | -8/Materials | Discovered new exit (range 13) 5018 | -8/Materials | Destroyed 8 combat bots 5268 | -8/Materials | Build established: Scavenger-Gunner 6005 | -8/Materials | Repaired Hrd. Medium Armor Plating 6218 | -8/Materials | Discovered exit to Factory (range 15) 6454 | -8/Materials | Entered Factory 6454 | -7/Factory | Evolved 2 slots: Utility x2 6791 | -7/Factory | Build established: Scavenger-Assassin 7100 | -7/Factory | Build established: Scavenger-Mutant 7169 | -7/Factory | Repaired Broken Exp. Sensor Array 7253 | -7/Factory | Discovered new exit (range 15) 7268 | -7/Factory | Identified exit to Factory 7467 | -7/Factory | Build established: Scavenger-Assassin 7478 | -7/Factory | Cargo convoy interrupted 7592 | -7/Factory | Discovered exit to Factory (range 7) 7856 | -7/Factory | Repaired Broken Exp. Sensor Array 7902 | -7/Factory | Build established: Scavenger-Mutant 8127 | -7/Factory | Discovered new exit (range 4) 8134 | -7/Factory | Identified exit to Lower Caves 8136 | -7/Factory | Entered Lower Caves 8137 | -7/Lower Caves | Encountered a Warlord checkpoint 8208 | -7/Lower Caves | Learned Factory garrison access intel 8288 | -7/Lower Caves | Found Prototype Device 8404 | -7/Lower Caves | Build established: Mutant 8596 | -7/Lower Caves | Discovered new exit (range 7) 8604 | -7/Lower Caves | Identified exit to Lower Caves 8618 | -7/Lower Caves | Entered another Lower Caves area 8618 | -7/Lower Caves | Spotted FR-DQ3(f) 8619 | -7/Lower Caves | Longsword +1 stolen by Master Thief 8620 | -7/Lower Caves | Encountered a Master Thief 8622 | -7/Lower Caves | Rewired FR-DQ3(f) 8886 | -7/Lower Caves | Discovered new exit (range 15) 8930 | -7/Lower Caves | Destroyed FR-DQ3(f) 8955 | -7/Lower Caves | Identified exit to Data Miner 8960 | -7/Lower Caves | Entered Data Miner 8960 | -7/Data Miner | Discovered new exit (range 6) 8983 | -7/Data Miner | Met Data Miner 9014 | -7/Data Miner | Learned location of Section 7 (-2) 9014 | -7/Data Miner | Acquired the access code to Warlord's prototype stash 9024 | -7/Data Miner | Received God Mode back door access code from Data Miner 9058 | -7/Data Miner | Identified exit to Proximity Caves 9060 | -7/Data Miner | Entered Proximity Caves 9215 | -6/Proximity Caves | Build established: Scavenger-Mutant 9288 | -6/Proximity Caves | Learned Factory stockpile data 9650 | -6/Proximity Caves | Discovered exit to Factory (range 8) 9921 | -6/Proximity Caves | Entered Factory 9921 | -6/Factory | Evolved 2 slots: Propulsion x1, Utility x1 9923 | -6/Factory | Loaded intel: 3 garrison access locations 10105 | -6/Factory | Identified exit to Lower Caves 10229 | -6/Factory | Build established: Scavenger-Assassin 10655 | -6/Factory | Repaired Med. Reactive Plating 10823 | -6/Factory | Discovered new exit (range 9) 10915 | -6/Factory | Identified Heart of Steel 11208 | -6/Factory | Fabricated Exp. Sensor Array (x1) 11303 | -6/Factory | Found Launcher Loader 11400 | -6/Factory | Build established: Assassin 11565 | -6/Factory | Identified exit to Factory 11566 | -6/Factory | Entered another Factory area 11566 | -5/Factory | Evolved 2 slots: Power x1, Utility x1 11734 | -5/Factory | Spotted B-75 Beast 11883 | -5/Factory | Build established: Scavenger-Assassin 12298 | -5/Factory | Sucked down chute 12298 | -5/Factory | Entered Waste 12313 | -5/Waste | EMP discharged 12321 | -5/Waste | Spotted C-40 Crusher 12373 | -5/Waste | Spotted C-40 Crusher 12377 | -5/Waste | Destroyed C-40 Crusher 12381 | -5/Waste | Spotted C-40 Crusher 12384 | -5/Waste | Destroyed C-40 Crusher 12403 | -5/Waste | Destroyed C-40 Crusher 12413 | -5/Waste | EMP discharged 12413 | -5/Waste | System corruption reached 10% 12423 | -5/Waste | Spotted C-40 Crusher 12440 | -5/Waste | Spotted C-40 Crusher 12470 | -5/Waste | Destroyed C-40 Crusher 12475 | -5/Waste | Destroyed C-40 Crusher 12482 | -5/Waste | Spotted C-40 Crusher 12490 | -5/Waste | Destroyed C-40 Crusher 12513 | -5/Waste | EMP discharged 12526 | -5/Waste | Discovered new exit (range 15) 12544 | -5/Waste | Identified exit to Factory 12545 | -5/Waste | Entered Factory 13014 | -5/Factory | Spotted B-75 Beast 13947 | -5/Factory | Lost 3 allies 14120 | -5/Factory | Discovered new exit (range 12) 14133 | -5/Factory | Identified exit to Upper Caves 14181 | -5/Factory | Entered Upper Caves 14221 | -5/Upper Caves | Learned Factory stockpile data 14535 | -5/Upper Caves | Build established: Mutant 14717 | -5/Upper Caves | Discovered new exit (range 4) 14727 | -5/Upper Caves | Identified exit to Upper Caves 14729 | -5/Upper Caves | Entered another Upper Caves area 14881 | -5/Upper Caves | Discovered new exit (range 4) 14883 | -5/Upper Caves | Identified exit to Zhirov 14897 | -5/Upper Caves | Entered Zhirov 14897 | -5/Zhirov | Discovered new exit (range 3) 14922 | -5/Zhirov | Met Zhirov 14946 | -5/Zhirov | Learned location of Quarantine (-2) 14946 | -5/Zhirov | Learned location of Testing (-3) 14946 | -5/Zhirov | Learned location of Command (-1) 14957 | -5/Zhirov | Zhirov requested help retrieving the SGEMP Prototype 14983 | -5/Zhirov | Found Alien Artifact 14983 | -5/Zhirov | Identified Integrated Dissipator 14983 | -5/Zhirov | Installed Integrated Dissipator, increased core heat dissipation (+20) 15159 | -5/Zhirov | Found Alien Artifact 15208 | -5/Zhirov | Identified exit to Proximity Caves 15213 | -5/Zhirov | Entered Proximity Caves 15333 | -4/Proximity Caves | Learned Research stockpile data 15506 | -4/Proximity Caves | Discovered new exit (range 6) 15511 | -4/Proximity Caves | Identified exit to Factory 15513 | -4/Proximity Caves | Entered Factory 15513 | -4/Factory | Evolved 2 slots: Propulsion x2 15535 | -4/Factory | Found Quantum Capacitor 15939 | -4/Factory | Build established: Hacker-Mutant 16755 | -4/Factory | Discovered new exit (range 14) 16772 | -4/Factory | Identified exit to Research 16877 | -4/Factory | Fabricated Exp. Targeting Computer? 17361 | -4/Factory | Identified exit to Upper Caves 17651 | -4/Factory | Fabricated Adv. Powered Armor (x1) 17782 | -4/Factory | System corruption reached 10% 17847 | -4/Factory | Found Hvy. Reflective Plating 17853 | -4/Factory | Entered Upper Caves 17853 | -4/Upper Caves | Spotted 51-QY5(f) 17855 | -4/Upper Caves | Encountered a Master Thief 17856 | -4/Upper Caves | Alien Artifact stolen by Master Thief 17856 | -4/Upper Caves | Spotted 3B-7QK(f) 17857 | -4/Upper Caves | Encountered a Master Thief 17860 | -4/Upper Caves | Rnf. Quantum Reactor stolen by Master Thief 17961 | -4/Upper Caves | Learned location of 2 exits from Research 18129 | -4/Upper Caves | Learned Research emergency access door positions 18455 | -4/Upper Caves | Discovered new exit (range 12) 18475 | -4/Upper Caves | Identified exit to Upper Caves 18477 | -4/Upper Caves | Entered another Upper Caves area 18477 | -4/Upper Caves | Spotted 2Y-B4C(f) 18479 | -4/Upper Caves | Encountered a Master Thief 18486 | -4/Upper Caves | Hvy. Treads stolen by Master Thief 18486 | -4/Upper Caves | Destroyed 2Y-B4C(f) 18529 | -4/Upper Caves | Discovered exit to Research (range 8) 18761 | -4/Upper Caves | Learned Research stockpile data 18901 | -4/Upper Caves | Build established: Hacker-Skirmisher 18963 | -4/Upper Caves | Discovered new exit (range 12) 18979 | -4/Upper Caves | Encountered a Warlord checkpoint 19003 | -4/Upper Caves | Identified exit to Warlord 19004 | -4/Upper Caves | Entered Warlord 19049 | -4/Warlord | System corruption cleaned by Quarantine Array 19380 | -4/Warlord | Met Warlord 19393 | -4/Warlord | Opened Warlord's prototype stash 19400 | -4/Warlord | Warlord's base attacked by MAIN.C 19425 | -4/Warlord | Found Prototype Reactor 19449 | -4/Warlord | Build established: Hacker-Mutant 19682 | -4/Warlord | Heart of Steel transformed into Warbot 19689 | -4/Warlord | Lost 5 allies 19750 | -4/Warlord | Warlord forces counterattacked 19750 | -4/Warlord | Spotted Executioner 19764 | -4/Warlord | Spotted Striker 19783 | -4/Warlord | Destroyed Striker 19806 | -4/Warlord | Spotted Striker 19807 | -4/Warlord | Spotted Executioner 19844 | -4/Warlord | Discovered new exit (range 15) 19860 | -4/Warlord | Identified exit to Proximity Caves 19861 | -4/Warlord | Entered Proximity Caves 19883 | -3/Proximity Caves | Lost 21 allies 19977 | -3/Proximity Caves | Build established: Tank 20465 | -3/Proximity Caves | Discovered exit to Research (range 9) 20483 | -3/Proximity Caves | Entered Research 20483 | -3/Research | Evolved 2 slots: Power x2 20483 | -3/Research | Identified Vortex Chain Reactor 20484 | -3/Research | Identified exit to Research 20484 | -3/Research | Identified exit to Armory 20686 | -3/Research | Found Hvy. Insulated Plating 20985 | -3/Research | Discovered exit to Research (range 11) 21054 | -3/Research | Build established: Generator-Mutant 21066 | -3/Research | Identified exit to Testing 21422 | -3/Research | Found Prototype Processor 21422 | -3/Research | Identified Exp. Melee Analysis Suite 21767 | -3/Research | Released all parts (8) 21773 | -3/Research | Core integrity fell below 50% 21778 | -3/Research | Destroyed 8 combat bots 21779 | -3/Research | Entered Testing 21789 | -3/Testing | Found Prototype Device 21789 | -3/Testing | Identified Exp. Thermal Shield 21796 | -3/Testing | Lost 14 parts (2p4n4u4w) 21807 | -3/Testing | Found Prototype Energy Gun 21807 | -3/Testing | Identified Warp Gun 21951 | -3/Testing | Found Prototype Processor 21951 | -3/Testing | Identified Spectral Analyzer 21964 | -3/Testing | System corruption reached 10% 22048 | -3/Testing | Found Prototype Hackware 22048 | -3/Testing | Identified Exp. System Shield 22147 | -3/Testing | Found Fusion Bomb Launcher 22183 | -3/Testing | Found Prototype Energy Gun 22183 | -3/Testing | Identified Tachyon Dispersion Ray 22237 | -3/Testing | Build established: Scavenger-Assassin 22446 | -3/Testing | Core integrity fell below 20% 22471 | -3/Testing | Scanned by Researcher 22476 | -3/Testing | Lost 7 parts (1p2n1u3w) 22566 | -3/Testing | Unstable Terrabomb Derivative detonated 22587 | -3/Testing | Destroyed 9 combat bots 22591 | -3/Testing | Lost 10 parts (3p2n2u3w) 22605 | -3/Testing | Found Prototype Processor 22605 | -3/Testing | Identified Exp. Terrain Scan Processor 22628 | -3/Testing | Found Exp. Terrain Scan Processor 22635 | -3/Testing | Found Prototype Device 22635 | -3/Testing | Identified Adv. EM Disruption Field 22644 | -3/Testing | Found Adv. EM Disruption Field 22809 | -3/Testing | First assault squad dispatched 22894 | -3/Testing | Found Prototype Protection 22894 | -3/Testing | Identified Hvy. Regenerative Plating 22900 | -3/Testing | Found Prototype Protection 22900 | -3/Testing | Identified SHELL Armor 22917 | -3/Testing | Incoming assault squad redirected 22942 | -3/Testing | Lost 3 parts (1p1n1w) 23046 | -3/Testing | Destroyed by H-77 Assassin with Coil Gun Last Messages --------------- 23004_ B-74 Champion destroyed. 23006_ Extracted schematic archive: Cld. Proton Cannon. 23009_ Extracted schematic archive: M-36 Artificer. 23012_ Extracted schematic archive: Adv. Remote Shield. 23018_ Acquired Med. Treads. 23023_ Extracted schematic archive: Imp. KE Penetrator. 23024_ Penetrated by Slug. 23024_ Wheel destroyed. 23027_ Penetrated by Slug. 23028_ System corrupted: Matter fused (-9). 23028_ Acquired 166 matter. 23028_ Slug penetrates Door Terminal. 23028_ Door Terminal disabled. 23028_ Slug penetrates Wall. 23030_ Penetrated by Slug. 23039_ Slug penetrates Wall. 23039_ Penetrated by Slug. 23043_ Slug penetrates H-77 Assassin. 23044_ Penetrated by Slug. 23046_ Slug penetrates Wall. Map ----- +----------------------------------------------------+ | ????????????????????## #### ! | | ?????????????????????# #?# ## | | ?????????????????????# #?### | | ?????????????????????# #?# ## % | | ?????????????######### ###### """ | | ?????????????# # #???###### #" | | ?????????????# # #????????# #" | | ?????????????# + #????????### | | ?????????????# # #??????????## | | ?????????????# # #???????????? | | ?????????????# ### ###???????????? | | ?????????????########?#[#???#####?????? | | ??????????##########??#|#?? ?????? | | ??????????# #??#%#?? "??????? | | ??????????# #??#=#? "" "??????? | | ??????????# ! ####%#? " """ ?? | | ??????????# !! #!!=!# " ?? | | ??????????# !! #!!=!# " " ??? | | ??????????# #%|=*+ "" ""????? | | ??????????# + [!# " "" ???? | | ??????????# # |# " ""????? | | ??????????# # #? " ""????? | | ??????????######;###g #? " ???? | | ????????????# %%ggg #?? ???? | | ????????????# [ %h h ############??? | | ????????????#!@ !### # """#????????? | | ????????????# ##?# / " "##??????? | | ????????????#"! %#?# $!# " #??????? | | ????????????##!""#?# $%$# #??????? | | ????????????#!!! #?# $$$# " "##??????? | | ????????????###*##?#% # """#????????? | | ??????????????###??# ######????????? | | ???????????????????# #?????????????? | | ???????????????????# #?????????????? | | ???????????????????# #?????????????? | | ???????????????????# #?????????????? | | ????????????????#### #############?? | | ????????????????# ? | | ????????????????# ? | | ????????????????# ? | | ????????????????# ? | | ???????????????######+#############+#?? | | ???????????????# #?????????? | | ???????????????# """ """ #?????????? | | ???????????????# """ """ #?????????? | | ???????????????# """ """ #?????????? | | ???????????????# #?????????? | | ???????????????# """ """ #?????????? | | ???????????????# """ """ #?????????? | | ???????????????# """ """ #?????????? | +----------------------------------------------------+ Best States ------------- Heat Dissipation 101 Coolant Potential 120 Energy Generation 87 Energy Capacity 1150 Matter Stores 300 Matter Capacity 600 Sight Range 20 Robot Scan Range 20 Terrain Scan Density 2010 Jamming Range 16 Power Amplification 30 Additional Mass Support 20 Corruption Block 20 Armor Coverage 1500 Resistance: KI 30 Resistance: TH 30 Resistance: EM 30 Melee Speed Boost 30 Evasion (%) 62 Targeting Accuracy 12 Target Analysis 8 Recoil Reduction 3 Offensive Hacking 14 Defensive Hacking 16 Authchip Count 1 Item Schematics ----------------- Huge Storage Unit | -8/Materials | Hacked Adv. Powered Armor | -8/Materials | Scanalyzed Exp. Sensor Array | -7/Factory | Scanalyzed Combat Drone Bay | -7/Data Miner | Free Lgt. Regenerative Plating | -7/Data Miner | Free Cld. Cesium-ion Thruster | -7/Data Miner | Free Exp. Targeting Computer | -7/Data Miner | Free Scatter Rocket Array | -7/Data Miner | Free Gyrokinetic Inverter | -7/Data Miner | Free Imp. Recalibrator | -7/Data Miner | Free Imp. Arc Projector | -7/Data Miner | Free Adv. Coolant Injector | -7/Data Miner | Free Hvy. Siege Treads | -6/Factory | Hacked Hvy. Phase Cannon | -6/Factory | Hacked Hrd. Medium Armor Plating | -6/Factory | Scanalyzed Assault Drone Bay | -5/Zhirov | Free Exp. Heat Sink | -5/Zhirov | Free Exp. Optical Array | -5/Zhirov | Free Imp. Arc Thrower | -5/Zhirov | Free Hvy. Reactive Plating | -4/Factory | Hacked Impact Mace | -3/Testing | Archive Cld. Proton Cannon | -3/Testing | Archive Adv. Remote Shield | -3/Testing | Archive Imp. KE Penetrator | -3/Testing | Archive Robot Schematics ------------------ M-28 Smith | -7/Data Miner | Free A-15 Conveyor | -7/Data Miner | Free P-60 Hacker | -7/Data Miner | Free R-10 Processor | -7/Data Miner | Free Y-54 Guardian | -7/Data Miner | Free M-36 Artificer | -3/Testing | Archive Fabricated ------------ Exp. Sensor Array | x1 | -6/Factory | Authchip Exp. Targeting Computer | x1 | -4/Factory Adv. Powered Armor | x1 | -4/Factory Alien Tech Used ----------------- Integrated Dissipator Achievements -------------- None Challenges ------------ None Game ------ Seed GaussGunShotgun Manual? 0 Play Time 02:52:20 Cumulative 237.0 hours Start 2024.05.20 @ 17:29:05 End 2024.05.21 @ 15:27:24 Sessions 13 Manual Loads 0 Difficulty Rogue Special Mode None Game No. 295 Rogue 295 Adventurer 0 Explorer 0 Win Type - Total 8 Types 4/1/0/1/1/0/0/1/0 Lore% 73 Gallery% 81 Achievement% 69 Wizard Run 0 Options --------- Layout 0 ASCII 0 Keyboard 0 Movement Numpad Keybinds 0 Fullscreen 1 Font 18/SmallcapsGlow Map View 76x50 Zoom Use 0% Tactical HUD 1 Map Filters NONE Filters NONE Steam 1 RUN: c8524125-a960-4822-97a8-248c8b4ac2f8